Cogmind - Beta 16 @@@ ROGUE MODE // 2025.11.05 @ 23:10:34 Player: Naughtyusername Result: Core destroyed Performance ------------- Evolutions (6) 3000 Regions Visited (23) 4600 Robots Destroyed (358) 1790 Value Destroyed (10760) 10760 Prototype IDs (62) 1240 Alien Tech Used (0) 0 Bonus (-992) -992 TOTAL SCORE: 20398 Bonus ------- High Alert Combat Kills 1048 Follower Combat Kills 1993 Network Hubs Disabled 600 Registered with UFD 300 Met Optimus in HQ 500 Met Data Miner 300 Built Enhanced Grunts 300 Met R17 at Cetus 500 Friendly Fire -6533 Cogmind --------- Core Integrity 0/1150 Matter 300/300 Energy 100/100 System Corruption 23% Temperature Cool (0) Movement Core (50) Location -4/Factory Parts ------- > --- POWER (2) -------- (None) > --- PROPULSION (8) --- (None) > --- UTILITY (6) ------ Enhanced Optical Array Advanced Signal Interpreter > --- WEAPON (3) ------- (None) > --- INVENTORY (5) ---- Experimental Terrain Scanner Medium Regenerative Plating Scatter Rocket Array CPS Tube (1) PL-3XN's Ring of Power Peak State ------------ > --- POWER ------------ Fusion Reactor Micro Antimatter Reactor > --- PROPULSION ------- Cooled Aerolev Unit Cooled Aerolev Unit Combat Airjet Gyrokinetic Inverter Combat Gravmag System Combat Gravmag System Antigrav Array > --- UTILITY ---------- Advanced Heat Sink Large Storage Unit Enhanced Optical Array Advanced Sensor Array Advanced Signal Interpreter Advanced Hacking Suite > --- WEAPON ----------- Heavy Proton Cannon Advanced KE Penetrator Advanced KE Penetrator > --- INVENTORY -------- Experimental Terrain Scanner Experimental Terrain Scan Processor Weapon Mount Improved Transmission Jammer Centrium Medium Armor Plating Centrium Medium Armor Plating Medium Regenerative Plating Scatter Rocket Array Tiamat Missile Launcher Tiamat Missile Launcher CPS Tube Phasing Sabre PL-3XN's Ring of Power [Rating: 125] Favorites ----------- Power Heavy Ion Engine Engine Heavy Ion Engine Power Core Fission Core Reactor Micro Antimatter Reactor Propulsion Armored Treads Treads Armored Treads Leg Improved Titanium Leg Hover Unit Cooled Aerolev Unit Utility Improved Targeting Computer Device Advanced Sensor Array Storage Huge Storage Unit Processor Improved Targeting Computer Hackware Advanced Hacking Suite Protection Weapon Shielding Weapon Improved Assault Rifle Energy Gun Small Laser Energy Cannon Cooled Plasma Cannon Ballistic Gun Improved Assault Rifle Ballistic Cannon Antimatter Cannon Launcher Tiamat Missile Launcher Special Weapon CPS Tube Impact Weapon Power Maul Slashing Weapon Phasing Sabre Piercing Weapon Spear Special Melee Weapon Improved Datajack Build | -11 -10 -10 -9 -9 -8 -8 -8 -8 -6 -6 -6 -6 -6 -6 -5 -5 -5 -5 -5 -5 -5 -5 -4 ------- Run | Yrd Mat Min Mat Min Mat Sto Rec Scr Fac Was Fac Low Low Dat Pro Fac Was Fac Ext Cet Arc Hub Fac Slots Evolved 12 | . . . 2 . 2 . . . 4 . . . . . . 2 . . . . . . 2 Power 1 | . . . . . . . . . . . . . . . . 1 . . . . . . . Propulsion 6 | . . . 1 . 1 . . . 1 . . . . . . 1 . . . . . . 2 Utility 4 | . . . 1 . 1 . . . 2 . . . . . . . . . . . . . . Weapon 1 | . . . . . . . . . 1 . . . . . . . . . . . . . . Parts Attached 203 | 7 9 1 17 2 17 14 3 3 30 5 18 4 1 . . 13 1 23 11 13 . 3 8 Power 27 | 2 . . 2 . 1 1 . 1 2 1 3 . . . . 2 1 4 2 3 . 1 1 Engine 9 | 2 . . 2 . 1 1 . 1 . . 1 . . . . . . . 1 . . . . Core 10 | . . . . . . . . . 2 . . . . . . 2 . 4 1 . . . 1 Reactor 8 | . . . . . . . . . . 1 2 . . . . . 1 . . 3 . 1 . Propulsion 49 | 1 2 . 6 . 9 5 . 2 13 2 1 . . . . 3 . 2 1 . . 1 1 Treads 24 | 1 2 . 6 . 9 4 . 2 . . . . . . . . . . . . . . . Leg 8 | . . . . . . . . . 8 . . . . . . . . . . . . . . Wheel . | . . . . . . . . . . . . . . . . . . . . . . . . Hover 17 | . . . . . . 1 . . 5 2 1 . . . . 3 . 2 1 . . 1 1 Flight . | . . . . . . . . . . . . . . . . . . . . . . . . Utility 70 | 2 2 1 6 . 3 3 3 . 8 2 8 3 . . . 6 . 6 6 6 . 1 4 Device 28 | 1 . 1 . . 1 2 1 . 3 2 3 2 . . . 2 . 3 3 3 . 1 . Storage 7 | 1 1 . 1 . . . . . 1 . . . . . . . . 1 . 1 . . 1 Processor 12 | . . . 1 . . . . . 1 . 3 1 . . . 2 . 1 1 . . . 2 Hackware 3 | . . . . . . . . . . . 1 . . . . 1 . . . . . . 1 Protection 20 | . 1 . 4 . 2 1 2 . 3 . 1 . . . . 1 . 1 2 2 . . . Artifact . | . . . . . . . . . . . . . . . . . . . . . . . . Weapon 57 | 2 5 . 3 2 4 5 . . 7 . 6 1 1 . . 2 . 11 2 4 . . 2 Energy Gun 2 | 1 1 . . . . . . . . . . . . . . . . . . . . . . Energy Cannon 9 | . 1 . . . . 1 . . 3 . . 1 . . . . . 2 . . . . 1 Ballistic Gun 18 | 1 2 . 2 2 2 2 . . 1 . . . . . . . . 2 1 3 . . . Ballistic Cannon 5 | . . . . . . . . . 2 . 3 . . . . . . . . . . . . Launcher 9 | . . . 1 . 1 . . . . . 2 . . . . . . 5 . . . . . Special Weapon 1 | . . . . . . . . . . . . . . . . . . . . 1 . . . Impact Weapon 7 | . 1 . . . 1 1 . . 1 . . . . . . 1 . 2 . . . . . Slashing Weapon 3 | . . . . . . . . . . . . . 1 . . . . . 1 . . . 1 Piercing Weapon 2 | . . . . . . . . . . . 1 . . . . 1 . . . . . . . Special Melee Weapon 1 | . . . . . . 1 . . . . . . . . . . . . . . . . . Unidentified Prototypes 32 | . . 1 . . 2 3 . . 4 . 3 . . . . 3 1 7 . 6 . 1 1 Parts Lost 37 | . 2 1 3 2 1 3 2 . 3 . 1 . . . . . . 3 1 . . 1 14 Power 6 | . . 1 . . . . . . . . 1 . . . . . . 1 . . . . 3 Propulsion 10 | . 1 . 1 . 1 1 . . . . . . . . . . . . . . . . 6 Utility 12 | . . . 2 . . 1 2 . 3 . . . . . . . . . 1 . . 1 2 Weapon 9 | . 1 . . 2 . 1 . . . . . . . . . . . 2 . . . . 3 Highest Loss Streak 9 | . 1 1 2 1 1 1 2 . 1 . 1 . . . . . . 1 1 . . 1 9 To Critical Strikes 1 | . . . . . . 1 . . . . . . . . . . . . . . . . . Average Backups 18 | . 8 13 19 24 24 24 23 24 17 13 13 14 13 14 14 13 13 13 13 13 13 13 13 Power 1 | . 1 . 1 2 2 2 2 1 1 1 . . . . . . . . . . . . . Propulsion 3 | . 1 2 3 5 4 4 4 3 3 1 2 4 4 4 4 1 1 . 1 . 1 1 . Utility 8 | . 3 5 6 8 12 12 11 11 5 4 4 5 5 5 5 6 7 8 5 7 7 7 7 Weapon 5 | . 2 4 8 8 6 5 6 5 6 5 4 4 3 4 4 3 4 3 5 4 4 4 4 Tool/Special . | . . . . . . . . . . . . . . . . . . . . . . . . Unused Backups 49 | . 1 . 3 2 7 4 . 4 8 2 1 . . . . 5 . 4 . 3 . . 5 Power 6 | . . . 2 . . 2 . . 1 1 . . . . . . . . . . . . . Propulsion 10 | . . . . . 2 2 . 1 2 . . . . . . 2 . 1 . . . . . Utility 16 | . . . . . . . . 3 2 1 . . . . . 3 . . . 3 . . 4 Weapon 16 | . 1 . 1 2 5 . . . 3 . . . . . . . . 3 . . . . 1 Tool/Special 1 | . . . . . . . . . . . 1 . . . . . . . . . . . . Average Slot Usage (%) 97 | . 91 99 97 99 99 99 99 99 97 86 87 93 98 100 100 98 100 99 99 99 100 96 80 Engine 7 | . 14 13 11 11 9 9 9 9 5 . 1 6 6 6 6 3 . . . 3 . . . Core 1 | . . . . . . . . . . 1 . . . . . 5 11 11 9 3 . . . Treads 20 | . 25 28 32 33 35 36 36 36 3 . . . . . . . . . . . . . . Leg 1 | . . . . . . . . . 24 . . . . . . . . . . . . . . Hover 11 | . . . . . . . . . 4 33 32 33 33 33 33 35 35 34 35 35 35 31 29 Device 6 | . 1 . 5 2 8 6 2 . 9 19 18 13 12 13 12 9 11 9 10 10 11 11 8 Storage 8 | . 14 14 11 11 9 9 9 9 6 6 6 6 6 6 6 5 5 5 5 5 5 5 4 Processor 9 | . . . . 11 9 9 9 9 7 13 13 18 20 20 20 17 17 17 11 11 11 11 10 Protection 9 | . 7 14 15 8 9 11 15 18 14 . . . . . . . . . 4 5 5 5 . Energy Cannon 1 | . . . . . . . . . 10 6 4 6 6 6 6 5 5 4 . . . . 1 Ballistic Gun 13 | . 15 28 21 21 17 17 17 17 1 . . . . . . . . . 11 16 17 17 7 Impact Weapon 1 | . . . . . . . . . . . . . . . . 4 5 10 3 . . . . Peak Build Rating 125 | 6 8 15 23 19 34 38 34 35 82 75 87 84 85 85 85 105 104 105 102 116 115 117 125 Average Rating 50 | 4 6 8 17 18 29 33 33 34 67 74 76 79 83 84 84 100 101 99 97 107 115 115 105 On Entrance 62 | . 6 8 9 19 19 33 34 28 35 69 74 80 80 85 80 85 101 101 99 99 115 115 116 Avg Prop Armor Cover (%) 4 | . . . . . . . . . 4 . . . . . . . . . . . . . 2 Naked Turns . | . . . . . . . . . . . . . . . . . . . . . . . . Heaviest Build 106 | 13 51 50 106 98 104 99 100 100 99 48 65 49 56 52 52 66 58 69 77 72 72 72 68 Greatest Support 110 | 20 40 40 60 60 83 80 80 90 110 50 50 48 48 48 48 76 64 72 74 76 76 80 98 Greatest Overweight (x) 5 | 2 1 1 1 1 1 1 1 1 5 1 1 1 1 1 1 1 . 1 1 . . . 1 Average Overweight (x) . | . . 1 . 1 1 1 1 . . . . . . . . . . . . . . . . Largest Inventory Capacity 25 | 8 20 20 25 25 25 25 25 25 20 15 15 15 15 15 15 15 15 15 15 15 15 15 15 Average Capacity 20 | 7 16 20 22 25 25 25 25 24 19 15 15 15 15 15 15 15 15 15 15 15 15 15 14 Most Carried 25 | 1 12 14 25 25 25 25 25 25 20 15 15 15 15 15 15 15 15 15 15 15 15 15 15 Average Carried 18 | . 8 13 19 24 24 24 23 24 18 14 14 15 14 15 15 14 15 14 14 14 15 14 14 Final Capacity 25 | 8 20 20 25 25 25 25 25 20 15 15 15 15 15 15 15 15 15 15 15 15 15 15 5 Final Carried 25 | 1 12 14 25 25 25 25 25 20 15 15 15 15 15 15 15 15 15 15 15 15 15 15 5 Class Distribution -------------------- 51% | Mutant 16% | Scout 13% | Scavenger-Mutant 5% | Commander-Gunner 5% | Tank 3% | Scavenger-Scout Dominant Class ---------------- Mutant | -10/Materials Mutant | -10/Mines Mutant | -9/Materials Scavenger-Mutant | -9/Mines Mutant | -8/Materials Mutant | -8/Storage Mutant | -8/Recycling Mutant | -8/Scraptown Tank | -6/Factory Mutant | -6/Waste Scavenger-Scout | -6/Factory Scout | -6/Lower Caves Scout | -6/Lower Caves Scout | -6/Data Miner Scout | -5/Proximity Caves Scout | -5/Factory Scout | -5/Waste Scout | -5/Factory Commander-Gunner | -5/Extension Commander-Gunner | -5/Cetus Commander-Gunner | -5/Archives Commander-Gunner | -5/Hub_04(d) Scavenger-Scout | -4/Factory Resources | -11 -10 -10 -9 -9 -8 -8 -8 -8 -6 -6 -6 -6 -6 -6 -5 -5 -5 -5 -5 -5 -5 -5 -4 ----------- Run | Yrd Mat Min Mat Min Mat Sto Rec Scr Fac Was Fac Low Low Dat Pro Fac Was Fac Ext Cet Arc Hub Fac Matter Collected 9382 | 277 190 46 587 187 770 1091 103 27 885 211 448 333 88 . 120 395 . 973 1148 474 84 592 353 Remotely . | . . . . . . . . . . . . . . . . . . . . . . . . Salvage Created 15479 | 117 701 55 1226 107 1506 1741 281 60 1917 284 1009 238 124 . 168 675 . 1311 1324 538 102 1602 393 Parts 715 | 11 41 8 73 13 79 85 14 2 75 7 42 4 9 . 8 18 . 48 66 38 5 56 13 Haulers Intercepted 30 | . 1 . 4 . 2 4 . . 5 . 3 . . . . 4 . 3 . . . 3 1 Recyclers Shooed 16 | 1 . . 3 . 3 2 . . 5 . 1 . . . . 1 . . . . . . . Parts Field Recycled . | . . . . . . . . . . . . . . . . . . . . . . . . Retrieved Matter . | . . . . . . . . . . . . . . . . . . . . . . . . Parts Self-Destructed 15 | . . . . . . . . . . . . 5 2 . 8 . . . . . . . . Prevented 3 | . . . . . . . . . . . . 3 . . . . . . . . . . . Parts Restored . | . . . . . . . . . . . . . . . . . . . . . . . . Kills | -11 -10 -10 -9 -9 -8 -8 -8 -8 -6 -6 -6 -6 -6 -6 -5 -5 -5 -5 -5 -5 -5 -5 -4 ------- Run | Yrd Mat Min Mat Min Mat Sto Rec Scr Fac Was Fac Low Low Dat Pro Fac Was Fac Ext Cet Arc Hub Fac Combat Hostiles Destroyed 200 | . 15 3 22 5 22 30 3 1 24 . 2 4 4 . 2 7 . 16 20 5 1 9 5 Melee 13 | . . . . . . . . 1 . . . . . . . 5 . 5 2 . . . . Guns 131 | . 15 3 22 5 22 30 3 . . . . . . . . . . . 13 5 1 9 3 Cannons 29 | . . . . . . . . . 22 . 2 4 . . 1 . . . . . . . . AOE 19 | . . . . . . . . . . . . . 4 . . . . 9 4 . . . 2 Classes Destroyed 22 | 2 6 . 1 . 4 1 . 1 1 1 . . 1 . 2 . . . . . . 2 . Worker 23 | . 1 . . . 1 1 . . 2 . 5 . . . . 2 . 6 1 . . 4 . Builder 25 | . 3 . . . . . . . 4 . 6 . . . . . . 7 4 . . . 1 Tunneler 7 | 3 1 1 . . . . . . 1 . . . . . . . . 1 . . . . . Hauler 30 | . 1 . 4 . 2 4 . . 5 . 3 . . . . 4 . 3 . . . 3 1 Recycler 20 | 1 1 . 2 . 1 4 2 . 3 . 2 . . . . . . 2 . . . 2 . Minesweeper 1 | . . . . . . . . . . . . . . . 1 . . . . . . . . Mechanic 2 | . . . . . 2 . . . . . . . . . . . . . . . . . . Operator 6 | . . . . . 1 1 . . . . 1 . . . . 3 . . . . . . . Watcher 19 | . 1 . 4 . 3 2 . . 1 . . . . . . 1 . 4 1 1 . 1 . Swarmer 53 | . 6 3 6 4 . 8 . . 4 . . . 4 . . 4 . 5 7 . . 2 . Cutter 1 | . . . . . . . . . . . . . . . . . . . . . . 1 . Grunt 78 | . 9 . 10 1 15 13 . . 11 . 1 4 . . . . . 2 4 . . 3 5 Brawler 2 | . . . . . 1 1 . . . . . . . . . . . . . . . . . Duelist 2 | . . . . . . 1 . . . . . . . . . . . . . . . 1 . Sentry 32 | . . . 6 . 5 7 3 . 1 . . . . . . . . 1 7 . 1 1 . Specialist 1 | . . . . . . . . . . . . . . . 1 . . . . . . . . Hunter 7 | . . . . . 2 . . . 4 . . . . . . . . . 1 . . . . Programmer 17 | . . . . . . . . . 4 . 1 . . . 1 3 . 8 . . . . . Heavy 1 | . . . . . . . . . . . . . . . . . . . . . . 1 . Cetus Guard 5 | . . . . . . . . . . . . . . . . . . . . 5 . . . Enhanced Grunt 3 | . . . . . . . . . . . . . . . . . . . . . . 3 . Scrapper 1 | . . . . . . . . 1 . . . . . . . . . . . . . . . Samaritan 2 | . . . . . . . . . . . . . 2 . . . . . . . . . . Surgeon 1 | . . . . . . . . . . . 1 . . . . . . . . . . . . Wasp 3 | . . . . . . . . . . 1 2 . . . . . . . . . . . . Thug 12 | . . . . . . . . . . 1 7 . . . . . . . 3 . . 1 . Savage 1 | . . . . . . . . . . . . . . . . . . . . 1 . . . Butcher 1 | . . . . . . . . . . . . . . . . . . . . . . 1 . Martyr 3 | . . . . . . . . . . 3 . . . . . . . . . . . . . Best Kill Streak 14 | 4 4 3 6 4 5 5 3 1 5 . 14 1 4 . 1 7 . 7 7 4 1 6 3 Combat Bots Only 7 | . 3 3 6 4 3 4 2 1 4 . 1 1 4 . 1 4 . 5 7 3 1 3 3 Max Kills in Single Turn 6 | 1 1 1 1 1 2 1 1 1 2 1 6 1 2 . 1 1 . 4 2 1 1 2 2 Gunslinging . | . . . . . . . . . . . . . . . . . . . . . . . . Exploded 4 | . . . . . . . . . . . . . 2 . . . . 4 2 . . . 2 Melee 1 | . . . . . . . . 1 . . . . . . . 1 . 1 1 . . . . Uniques/NPCs Destroyed 1 | . . . . . . . . . . . . . . . . . . . . 1 . . . A7 (-5/Cetus) Combat | -11 -10 -10 -9 -9 -8 -8 -8 -8 -6 -6 -6 -6 -6 -6 -5 -5 -5 -5 -5 -5 -5 -5 -4 -------- Run | Yrd Mat Min Mat Min Mat Sto Rec Scr Fac Was Fac Low Low Dat Pro Fac Was Fac Ext Cet Arc Hub Fac Hostile Shots Fired 1198 | . 85 10 106 35 172 159 28 5 133 . 14 4 2 . 11 43 . 94 49 12 . 29 207 Missed 389 | . 26 3 26 8 54 38 8 . 35 . 4 2 1 . 5 14 . 41 24 6 . 6 88 Hits 809 | . 59 7 80 27 118 121 20 5 98 . 10 2 1 . 6 29 . 53 25 6 . 23 119 Melee 6 | . . . . . 2 1 . 3 . . . . . . . . . . . . . . . Projectile 803 | . 59 7 80 27 116 120 20 2 98 . 10 2 1 . 6 29 . 53 25 6 . 23 119 AOE 4 | . . . . 1 . . . . . . . . . . . . . . . . . . 3 Critical Strikes 42 | . . . 6 . 6 8 1 . 3 . 1 . . . 2 . . 3 . 1 . 3 8 Actively Blocked 3 | . . . . . . 2 . . 1 . . . . . . . . . . . . . . Part Disruptions 2 | . . . . . . . . . . . . . . . . 1 . 1 . . . . . Damage Taken 12802 | . 622 53 986 324 1287 1317 284 179 1529 . 430 37 14 . 85 445 . 1156 371 239 . 756 2688 Core 2165 | . 135 10 94 69 106 98 26 . 96 . 38 19 . . 11 17 . 20 47 92 . 99 1188 Absorbed by Shields 1084 | . . . . . 491 300 17 . . . . . . . . 71 . . 142 28 . 35 . Redirected to Shielding 197 | . . . 42 . . 47 13 17 78 . . . . . . . . . . . . . . Regen/Repaired (Parts) 353 | . . . . . . 26 . . . 18 66 . . . . 21 . 131 . 5 . 64 22 Core Remaining (%) 68 | 100 . 42 . 59 . . . 58 . . . . . . 80 . . . . . . 72 . Volleys Fired 840 | 7 66 5 93 14 98 128 11 . 104 18 56 35 4 . 25 20 . 26 49 19 5 42 15 Largest 3 | 2 2 2 2 2 2 2 2 . 3 1 3 1 1 . 1 2 . 2 3 3 3 3 2 Hottest 105 | 60 100 40 46 46 46 48 48 . 103 35 101 35 39 . 35 68 . 92 99 105 105 105 70 Shots Fired 1669 | 14 130 13 185 27 196 255 23 . 253 18 76 35 4 . 25 25 . 34 132 53 15 128 28 Gun 1204 | 14 126 13 184 27 196 255 23 . 17 . . . . . . . . . 128 52 15 128 26 Cannon 445 | . 4 . . . . . . . 236 18 74 35 2 . 25 25 . 26 . . . . . Launcher 19 | . . . 1 . . . . . . . 2 . 2 . . . . 8 4 . . . 2 Special 1 | . . . . . . . . . . . . . . . . . . . . 1 . . . Kinetic 1241 | 7 59 13 184 27 196 255 23 . 89 . 34 . . . . 5 . . 128 52 15 128 26 Thermal 403 | 7 71 . . . . . . . 164 18 40 35 2 . 25 20 . 21 . . . . . Explosive 19 | . . . 1 . . . . . . . 2 . 2 . . . . 8 4 . . . 2 Electromagnetic 5 | . . . . . . . . . . . . . . . . . . 5 . . . . . Robot Hit Streak 41 | 5 16 7 27 7 38 41 17 . 18 7 8 4 . . 6 10 . 9 14 22 10 17 7 Robot Miss Streak 8 | 1 8 1 3 1 2 4 1 . 3 2 2 1 . . 2 4 . 1 3 4 1 2 2 Penetration Max 1 | . . . . . . . . . . . . . . . . . . . 1 1 1 1 1 Secondary Targets 17 | . . . 2 . 1 5 . . . . . . . . . . . . 4 2 . 2 1 Max Gunslinging Chain 1 | . . . 1 . 1 1 . . . . . . . . . . . . 1 1 . 1 1 Shots Hit Robots 1211 | 10 89 8 142 20 157 185 21 . 142 14 26 6 3 . 9 44 . 64 111 38 12 77 33 Core Hits 536 | 6 37 5 53 8 67 68 6 . 57 7 44 5 4 . 3 12 . 22 50 22 5 39 16 Critical Kills 38 | . 1 . 1 . . 3 . . 4 3 . . . . 1 1 . 4 6 4 1 7 2 Critical Parts Destroyed 40 | . . . . 1 . 1 . . . . . . . . . 9 . 8 6 . 1 12 2 Critical Strikes 90 | . 1 . 1 1 . 5 . . 6 3 2 . . . 1 11 . 12 14 4 3 21 5 Meltdown 8 | . . . . . . . . . 4 3 . . . . 1 . . . . . . . . Destroy 49 | . 1 . 1 1 . 4 . . . . . . . . . . . . 10 4 3 21 4 Blast 5 | . . . . . . . . . 2 . 2 . . . . 1 . . . . . . . Smash 27 | . . . . . . 1 . . . . . . . . . 10 . 12 4 . . . . Sever 1 | . . . . . . . . . . . . . . . . . . . . . . . 1 Melee Attacks 283 | . 4 . . . 3 13 . . . . . . 3 . . 80 . 120 21 3 . . 36 Impact 208 | . 4 . . . 3 13 . . . . . . . . . 56 . 120 12 . . . . Slashing 51 | . . . . . . . . . . . . . 3 . . . . . 9 3 . . 36 Piercing 24 | . . . . . . . . . . . . . . . . 24 . . . . . . . Sneak Attacks 39 | . 1 . . . . 3 . . . . . . 3 . . 5 . 18 2 3 . . 4 Combat Hostiles . | . . . . . . . . . . . . . . . . . . . . . . . . Follow-up Attacks 14 | . . . . . . . . . . . . . . . . 6 . 6 2 . . . . Damage Inflicted 39425 | 104 1013 95 2018 333 2747 3144 364 8 5259 506 4310 198 544 . 311 2267 . 5045 4214 1325 377 2988 2255 Guns 16272 | 104 894 63 1954 310 2430 2898 341 . 210 . . . . . . . . . 2596 1110 377 2519 466 Cannons 7373 | . 37 . . . . . . . 4824 506 1001 198 . . 311 341 . 155 . . . . . Explosions 6858 | . . . 32 . 269 . . . . . 3309 . 255 . . . . 1131 644 . . 469 749 Melee 8352 | . 69 . . . . 179 . . . . . . 289 . . 1926 . 3759 974 215 . . 941 Ramming 570 | . 13 32 32 23 48 67 23 8 225 . . . . . . . . . . . . . 99 Kinetic 17738 | 40 319 63 1954 310 2430 2898 341 . 1715 . 450 . . . . 150 . . 2596 1110 377 2519 466 Thermal 6784 | 64 612 . . . 269 . . . 3319 506 1194 198 . . 311 191 . 120 . . . . . Explosive 5477 | . . . 32 . . . . . . . 2666 . 255 . . . . 1131 644 . . . 749 Electromagnetic 504 | . . . . . . . . . . . . . . . . . . 35 . . . 469 . Impact 5955 | . 69 . . . . 179 . . . . . . . . . 1602 . 3759 346 . . . . Slashing 2073 | . . . . . . . . . . . . . 289 . . . . . 628 215 . . 941 Piercing 324 | . . . . . . . . . . . . . . . . 324 . . . . . . . Highest Corruption 23 | . 2 2 . . . 1 1 . 2 2 4 . . . 2 2 2 17 17 17 17 17 23 Average Corruption 5 | . 2 2 . . . 1 1 . 1 2 2 . . . 1 1 2 9 17 17 17 17 6 Corruption Purged 4 | . . . . . . . . . . . 4 . . . . . . . . . . . . Corruption Blocked . | . . . . . . . . . . . . . . . . . . . . . . . . Effects 265 | . 25 14 . . . 9 8 . 16 5 14 . . . 3 3 1 60 47 22 5 28 5 Message Errors 59 | . 5 3 . . . 3 1 . 3 . 5 . . . . . . 13 10 9 1 3 3 Matter Fused 62 | . 4 1 . . . 2 1 . 6 3 4 . . . . 1 1 17 9 4 2 7 . Heat Flow Errors 28 | . 4 2 . . . 1 3 . 1 . 1 . . . 1 1 . 7 3 1 . 3 . Energy Discharges 21 | . 3 1 . . . . . . 1 . 1 . . . . . . 5 3 2 . 5 . Parts Rejected 5 | . . . . . . . . . . . 1 . . . . . . 3 1 . . . . Parts Fused 5 | . 1 . . . . . . . . . . . . . . . . 1 3 . . . . Data Loss (minor) 28 | . 4 . . . . . 2 . 2 1 1 . . . 1 . . 2 10 2 1 2 . Data Loss (major) 18 | . 2 4 . . . 2 . . . . . . . . 1 . . 4 . 2 1 1 1 Misfires 17 | . . 3 . . . . 1 . 1 . . . . . . . . 6 3 . . 3 . Alerts 6 | . . . . . . 1 . . . 1 1 . . . . 1 . 1 . . . 1 . Misdirections 5 | . . . . . . . . . . . . . . . . . . 1 1 . . 2 1 Weapon Failures 11 | . 2 . . . . . . . 2 . . . . . . . . . 4 2 . 1 . Overload Shots . | . . . . . . . . . . . . . . . . . . . . . . . . Overflow Damage 3925 | . 44 . . . 57 89 . . 308 1 210 . 171 . . 830 . 1707 342 . . 45 121 Projectiles 340 | . . . . . . . . . 308 1 31 . . . . . . . . . . . . Explosions 441 | . . . . . 56 . . . . . 179 . 52 . . . . 41 68 . . 45 . Melee 3144 | . 44 . . . 1 89 . . . . . . 119 . . 830 . 1666 274 . . . 121 Knockbacks 45 | . 1 . 1 . 2 1 . . 17 . 2 . . . . 6 . 14 . . . . 1 Impact 25 | . 1 . 1 . 2 1 . . 1 . . . . . . 5 . 13 . . . . 1 Kinetic 17 | . . . . . . . . . 15 . 2 . . . . . . . . . . . . Secondary 3 | . . . . . . . . . 1 . . . . . . 1 . 1 . . . . . Self-Inflicted Damage 477 | . . . . . 30 . . . . . 223 . . . . . . . . . . 164 60 Shots 6 | . . . . . 1 . . . . . 3 . . . . . . . . . . 2 . Rammed 43 | . 2 6 6 1 9 6 3 1 1 . . . . . . . . . . . . . 8 Targets Rammed 72 | . 3 7 6 1 11 9 5 2 20 . . . . . . . . . . . . . 8 Kicked 19 | . . . . . . . . . 19 . . . . . . . . . . . . . . Crushed 10 | . 1 1 . . 2 3 2 1 . . . . . . . . . . . . . . . Highest Temperature 408 | 40 408 273 37 14 14 149 260 . 229 . 216 7 . . 160 216 . 282 318 168 1 351 15 Average Temperature 60 | 23 78 84 15 6 4 14 64 . 68 . 118 4 . . 92 92 . 59 79 58 1 68 4 Received Heat Transfer 2849 | . 261 . 471 63 573 564 108 24 321 . 18 18 . . . . . 18 51 18 . 128 213 Effects 3 | . 3 . . . . . . . . . . . . . . . . . . . . . . Energy Bleed 1 | . 1 . . . . . . . . . . . . . . . . . . . . . . Interference 1 | . 1 . . . . . . . . . . . . . . . . . . . . . . Short Circuit 1 | . 1 . . . . . . . . . . . . . . . . . . . . . . Siege Activations . | . . . . . . . . . . . . . . . . . . . . . . . . Martial Activations . | . . . . . . . . . . . . . . . . . . . . . . . . Shielding Activations . | . . . . . . . . . . . . . . . . . . . . . . . . Robots Disrupted . | . . . . . . . . . . . . . . . . . . . . . . . . Combat Hostiles . | . . . . . . . . . . . . . . . . . . . . . . . . Robots Corrupted 22 | . 1 . . . 1 1 . . . . . . . . . 6 . 10 1 . . 2 . Combat Hostiles 5 | . . . . . . . . . . . . . . . . 2 . 2 1 . . . . Parts Fried 40 | . 1 . . . . . . . . . . . . . . 10 . 20 2 . . 7 . Impact Corruptions 92 | . 1 . . . 1 4 . . . . . . . . . 28 . 56 2 . . . . Robots Melted 9 | . . . . . . . . . 4 3 1 . . . 1 . . . . . . . . Combat Hostiles 3 | . . . . . . . . . 2 . . . . . 1 . . . . . . . . Parts Melted 25 | . 1 . . . 2 . . . 11 8 . . . . 3 . . . . . . . . Heat Transferred 9885 | 150 1324 . . . 150 . . . 5050 800 1250 300 . . 450 300 . 111 . . . . . Parts Sabotaged . | . . . . . . . . . . . . . . . . . . . . . . . . Parts Stolen . | . . . . . . . . . . . . . . . . . . . . . . . . Parts Stripped . | . . . . . . . . . . . . . . . . . . . . . . . . Power Chain Reactions . | . . . . . . . . . . . . . . . . . . . . . . . . Alert | -11 -10 -10 -9 -9 -8 -8 -8 -8 -6 -6 -6 -6 -6 -6 -5 -5 -5 -5 -5 -5 -5 -5 -4 ------- Run | Yrd Mat Min Mat Min Mat Sto Rec Scr Fac Was Fac Low Low Dat Pro Fac Was Fac Ext Cet Arc Hub Fac Maximum Alert Level 5 | . . . 2 . . 1 . . 2 . 2 . . . . 1 . 2 4 3 2 5 4 Low Security (%) 74 | 100 100 100 78 100 100 72 100 . 45 100 52 . . . . 99 100 70 51 . . 1 . Level 1 11 | . . . 12 . . 27 . . 37 . 2 . . . . . . 29 8 . 16 35 . Level 2 5 | . . . 8 . . . . . 16 . 45 . . . . . . . 12 6 83 5 . Level 3 5 | . . . . . . . . . . . . . . . . . . . 6 93 . 13 90 Level 4 2 | . . . . . . . . . . . . . . . . . . . 21 . . 26 9 Level 5 . | . . . . . . . . . . . . . . . . . . . . . . 16 . High Security . | . . . . . . . . . . . . . . . . . . . . . . . . Max Security . | . . . . . . . . . . . . . . . . . . . . . . . . Peak Influence 2088 | 15 117 60 435 162 155 345 130 . 487 169 588 . . . . 201 13 401 1262 897 492 2088 1247 Initial 1022 | . . 16 . 162 5 46 130 . . 169 28 . . . . 14 13 . 194 675 326 161 1022 Average 185 | 2 47 3 99 22 44 145 34 . 188 105 298 . . . . 101 6 119 487 803 453 930 1004 Influence Increases 12482 | 20 556 75 791 166 714 1239 239 . 964 2 986 110 90 . 105 564 . 859 1576 356 196 2187 687 Destroy 0b10 Robot/C 5060 | . 300 60 440 140 440 760 60 . 480 . 180 80 80 . 40 140 . 320 760 160 80 440 100 Destroy 0b10 Robot/NC 710 | 20 40 5 50 . 50 65 10 . 80 . 95 . . . 5 50 . 115 55 10 . 50 10 Destroy Leader 1076 | . 74 10 156 20 120 182 . . 130 . 48 . 10 . . 30 . 84 84 . . 116 12 Allied During Kill 1482 | . . . . 6 4 38 . . . . 144 . . . . . . . 507 170 80 533 . Successful Hack 473 | . 36 . 42 . 15 66 19 . 78 . 8 . . . . 71 . 48 16 . . 47 27 Select Force Hacks 300 | . 60 . 30 . . 60 150 . . . . . . . . . . . . . . . . Disable Machine 900 | . . . . . 15 45 . . 45 . 285 . . . . 30 . . 15 . 30 375 60 Destroy Structure 1386 | . 1 . 13 . 25 8 . . 76 2 121 . . . . 78 . 262 94 16 6 566 118 Partial Spotted 150 | . . . . . . . . . 45 . 30 . . . . 30 . . 15 . . . 30 Lose Combat Pursuer 945 | . 45 . 60 . 45 15 . . 30 . 75 30 . . 60 135 . 30 30 . . 60 330 Influence Decreases 11539 | 20 514 117 374 567 619 1015 574 . 480 445 497 515 165 50 81 549 39 461 768 745 551 561 1832 Entered New Map 3791 | . . 26 . 255 11 65 205 . . 315 13 197 25 50 . 10 26 . 204 531 491 301 1066 Time Decay 6283 | 20 494 81 354 302 417 646 349 . 450 130 374 318 140 . 81 389 13 441 474 214 40 230 326 Lost Part 340 | . 20 10 20 10 10 30 20 . 30 . 10 . . . . . . 20 10 . . 10 140 Lost Ally 288 | . . . . . 28 40 . . . . 100 . . . . . . . 80 . 20 20 . Purge Threat 837 | . . . . . 153 234 . . . . . . . . . 150 . . . . . . 300 Squads Dispatched 80 | . 3 . 5 . 3 6 . . 15 . 5 . . . . 11 . 14 6 . . 4 8 Investigation 34 | . 2 . 2 . 1 2 . . 5 . 2 . . . . 4 . 8 3 . . . 5 Extermination 17 | . . . . . . . . . 4 . 2 . . . . 4 . 4 . . . 1 2 Reinforcement 23 | . 1 . 2 . 2 1 . . 6 . 1 . . . . 3 . 2 2 . . 2 1 Assault 4 | . . . 1 . . 2 . . . . . . . . . . . . 1 . . . . Garrison 2 | . . . . . . 1 . . . . . . . . . . . . . . . 1 . Intercept . | . . . . . . . . . . . . . . . . . . . . . . . . Searches Triggered . | . . . . . . . . . . . . . . . . . . . . . . . . Data Miner Redirects 2 | . . . . . . . . . . . . . . . . . . 1 . . . . 1 Construction Impeded 6 | . . . . . . . . . 2 . 1 . . . . . . 1 2 . . . . Haulers Reinforced 6 | . . . . . . . . . 3 . . . . . . 2 . 1 . . . . . Active Scanning Responses . | . . . . . . . . . . . . . . . . . . . . . . . . Cargo Convoy Interrupts . | . . . . . . . . . . . . . . . . . . . . . . . . Stealth | -11 -10 -10 -9 -9 -8 -8 -8 -8 -6 -6 -6 -6 -6 -6 -5 -5 -5 -5 -5 -5 -5 -5 -4 --------- Run | Yrd Mat Min Mat Min Mat Sto Rec Scr Fac Was Fac Low Low Dat Pro Fac Was Fac Ext Cet Arc Hub Fac Distress Signals 23 | . 3 . 2 . 2 3 . . 2 . 3 . . . . 2 . 1 3 . . 1 1 Communications Jammed . | . . . . . . . . . . . . . . . . . . . . . . . . Distress Signals . | . . . . . . . . . . . . . . . . . . . . . . . . Times Spotted 438 | . 30 3 31 9 43 52 3 5 42 . 14 5 2 . 6 29 6 24 39 8 6 29 52 Peak Tracking Total 20 | . 4 3 5 4 5 5 2 3 4 . 5 1 2 . 4 7 6 6 5 5 1 7 20 Tactical Retreats 36 | . 3 . 2 . 2 1 . . 1 . 2 2 . . 1 5 . 1 2 . . 4 10 Traps | -11 -10 -10 -9 -9 -8 -8 -8 -8 -6 -6 -6 -6 -6 -6 -5 -5 -5 -5 -5 -5 -5 -5 -4 ------- Run | Yrd Mat Min Mat Min Mat Sto Rec Scr Fac Was Fac Low Low Dat Pro Fac Was Fac Ext Cet Arc Hub Fac Traps Triggered 23 | . 1 . 1 . 1 3 . . 4 . 1 . . . . 1 . 6 3 . . 1 1 Indirectly . | . . . . . . . . . . . . . . . . . . . . . . . . Trap Hack Attempts . | . . . . . . . . . . . . . . . . . . . . . . . . Triggered . | . . . . . . . . . . . . . . . . . . . . . . . . Disarmed . | . . . . . . . . . . . . . . . . . . . . . . . . Reprogrammed . | . . . . . . . . . . . . . . . . . . . . . . . . Reused . | . . . . . . . . . . . . . . . . . . . . . . . . Traps Extracted . | . . . . . . . . . . . . . . . . . . . . . . . . Installed 2 | . . . . . . . . . . . . . . . 2 . . . . . . . . Triggered . | . . . . . . . . . . . . . . . . . . . . . . . . Machines | -11 -10 -10 -9 -9 -8 -8 -8 -8 -6 -6 -6 -6 -6 -6 -5 -5 -5 -5 -5 -5 -5 -5 -4 ---------- Run | Yrd Mat Min Mat Min Mat Sto Rec Scr Fac Was Fac Low Low Dat Pro Fac Was Fac Ext Cet Arc Hub Fac Machines Disabled 63 | . . . . . 1 3 . . 3 . 19 . . . 1 2 . . 3 . 2 25 4 Max in Single Turn 8 | . . . . . 1 1 . . 1 . 4 . . . 1 1 . . 1 . 1 8 3 Garrison Access 2 | . . . . . . 1 . . . . . . . . . . . 1 . . . . . Network Hub 3 | . . . . . . . . . . . . . . . . . . . . . . 3 . Machines Repaired . | . . . . . . . . . . . . . . . . . . . . . . . . Machines Dismantled . | . . . . . . . . . . . . . . . . . . . . . . . . Machines Sabotaged . | . . . . . . . . . . . . . . . . . . . . . . . . Overloaded Fab Kills . | . . . . . . . . . . . . . . . . . . . . . . . . Hacking | -11 -10 -10 -9 -9 -8 -8 -8 -8 -6 -6 -6 -6 -6 -6 -5 -5 -5 -5 -5 -5 -5 -5 -4 --------- Run | Yrd Mat Min Mat Min Mat Sto Rec Scr Fac Was Fac Low Low Dat Pro Fac Was Fac Ext Cet Arc Hub Fac Machines Accessed 161 | . 8 1 7 . 8 17 11 3 14 . 15 . 2 3 . 22 . 27 7 1 . 7 8 Terminals 80 | . 6 . 4 . 7 12 6 . 5 . 9 . . . . 9 . 7 6 1 . 6 2 Fabricators 11 | . . . . . . . . . 2 . 2 . . . . 1 . 5 . . . . 1 Repair Stations 8 | . . . . . . 2 . . . . 2 . . . . 2 . 2 . . . . . Recycling Units 31 | . 2 . 2 . . 2 5 . 4 . . . . . . 5 . 6 1 . . . 4 Scanalyzers 14 | . . . 1 . 1 . . . 2 . 2 . . . . 3 . 4 . . . . 1 Garrison Access 8 | . . . . . . 1 . . 1 . . . . . . 2 . 3 . . . 1 . Total Hacks 447 | . 32 1 21 . 26 47 25 9 40 . 33 . 4 25 . 45 . 65 11 3 . 20 40 Successful 234 | . 23 1 10 . 15 27 16 9 20 . 13 . 4 25 . 15 . 27 3 . . 5 21 Failed 209 | . 8 . 11 . 10 20 9 . 20 . 20 . . . . 29 . 38 8 3 . 15 18 Catastrophic 45 | . 1 . 2 . . 2 2 . 4 . 8 . . . . 7 . 9 2 1 . 6 1 Database Lockouts 4 | . 1 . . . 1 . . . . . . . . . . 1 . . . . . . 1 Manual 223 | . 26 . 15 . 20 26 23 . 18 . 9 . . . 1 17 . 22 8 1 . 16 21 Terminals 239 | . 28 . 13 . 24 36 19 . 15 . 18 . . . . 20 . 17 9 3 . 16 21 Fabricators 33 | . . . . . . . . . 5 . 4 . . . . 5 . 13 . . . . 6 Repair Stations 20 | . . . . . . 4 . . . . 6 . . . . 4 . 6 . . . . . Recycling Units 51 | . 4 . 5 . . 5 6 . 8 . . . . . . 7 . 8 2 . . . 6 Scanalyzers 49 | . . . 3 . 2 . . . 11 . 5 . . . . 5 . 16 . . . . 7 Garrison Access 16 | . . . . . . 2 . . 1 . . . . . . 4 . 5 . . . 4 . Terminal Hacks 81 | . 9 1 . . 2 9 1 9 4 . 2 . 4 25 . 5 . 2 . . . 1 7 Record 12 | . . . . . . . . 3 . . . . 3 6 . . . . . . . . . Part Schematic 13 | . . . . . . . . . . . . . . 12 . 1 . . . . . . . Robot Schematic 4 | . . . . . . . . . . . . . . 4 . . . . . . . . . Robot Analysis 7 | . 2 . . . . . . 5 . . . . . . . . . . . . . . . Prototype ID Bank 7 | . 3 . . . . . . . . . 1 . . 3 . . . . . . . . . Open Door 7 | . . 1 . . . 4 . . . . . . 1 . . . . 1 . . . . . Level Access Points 1 | . 1 . . . . . . . . . . . . . . . . . . . . . . Branch Access Points 4 | . . . . . . . . . 1 . . . . . . 1 . 1 . . . . 1 Terminal Index 6 | . 1 . . . . 1 1 . . . 1 . . . . 1 . . . . . . 1 Alert Level 2 | . . . . . . 1 . . . . . . . . . . . . . . . . 1 Unreport Threat 7 | . . . . . 2 2 . . . . . . . . . 1 . . . . . . 2 Patrol Status 1 | . 1 . . . . . . . . . . . . . . . . . . . . . . Transport Status 1 | . . . . . . . . . 1 . . . . . . . . . . . . . . Hauler Manifests 6 | . 1 . . . . 1 . . 1 . . . . . . 1 . . . . . 1 1 Registered Components 2 | . . . . . . . . . 1 . . . . . . . . . . . . . 1 Proto ID Catalog 1 | . . . . . . . . 1 . . . . . . . . . . . . . . . Fabricator Hacks 7 | . . . . . . . . . . . 1 . . . . 1 . 3 . . . . 2 Network Status 3 | . . . . . . . . . . . 1 . . . . . . 1 . . . . 1 Load Schematic 4 | . . . . . . . . . . . . . . . . 1 . 2 . . . . 1 Repair Station Hacks 11 | . . . . . . 2 . . . . 4 . . . . 2 . 3 . . . . . Scan Component 6 | . . . . . . 1 . . . . 2 . . . . 1 . 2 . . . . . Repair 5 | . . . . . . 1 . . . . 2 . . . . 1 . 1 . . . . . Recycling Unit Hacks 4 | . 1 . 1 . . 1 . . 1 . . . . . . . . . . . . . . Retrieve Components 4 | . 1 . 1 . . 1 . . 1 . . . . . . . . . . . . . . Scanalyzer 35 | . . . 2 . 2 . . . 8 . 5 . . . . 3 . 10 . . . . 5 Insert Component 10 | . . . . . . . . . 2 . 1 . . . . 1 . 4 . . . . 2 Analyze 9 | . . . . . . . . . 3 . 1 . . . . . . 4 . . . . 1 Retrieve Study 16 | . . . 2 . 2 . . . 3 . 3 . . . . 2 . 2 . . . . 2 Garrison Access Hacks 2 | . . . . . . 1 . . . . . . . . . . . 1 . . . . . Seal Access 2 | . . . . . . 1 . . . . . . . . . . . 1 . . . . . Unauthorized Hacks 93 | . 13 . 6 . 11 14 15 . 7 . 1 . . . . 4 . 8 3 . . 4 7 Terminals 61 | . 11 . 5 . 11 12 10 . 3 . . . . . . 1 . 1 2 . . 4 1 Track 13 | . 2 . . . 1 3 . . 1 . . . . . . 1 . . 1 . . 4 . Assimilate 1 | . . . . . . . . . 1 . . . . . . . . . . . . . . Botnet 16 | . 3 . 2 . 3 2 4 . . . . . . . . . . 1 1 . . . . Disrupt 1 | . . . . . 1 . . . . . . . . . . . . . . . . . . Operators 3 | . 1 . . . . 1 . . . . . . . . . . . . . . . . 1 Skim 27 | . 5 . 3 . 6 6 6 . 1 . . . . . . . . . . . . . . Fabricators 5 | . . . . . . . . . 1 . 1 . . . . . . 1 . . . . 2 Haulers 4 | . . . . . . . . . 1 . 1 . . . . . . 1 . . . . 1 Recompile 1 | . . . . . . . . . . . . . . . . . . . . . . . 1 Repair Stations 1 | . . . . . . . . . . . . . . . . . . 1 . . . . . Patch 1 | . . . . . . . . . . . . . . . . . . 1 . . . . . Recycling Units 26 | . 2 . 1 . . 2 5 . 3 . . . . . . 3 . 5 1 . . . 4 Tunnel 10 | . 2 . 1 . . 2 5 . . . . . . . . . . . . . . . . Fedlink 15 | . . . . . . . . . 3 . . . . . . 3 . 5 1 . . . 3 Scrapoids 1 | . . . . . . . . . . . . . . . . . . . . . . . 1 Scanalyzers . | . . . . . . . . . . . . . . . . . . . . . . . . Garrison Access . | . . . . . . . . . . . . . . . . . . . . . . . . Data Cores Recovered 3 | . . . . . . . . . . . 2 . . . . 1 . . . . . . . Used . | . . . . . . . . . . . . . . . . . . . . . . . . Hacking Detections 124 | . 6 . 6 . 8 13 7 . 11 . 14 . . . . 19 . 21 7 1 . 6 5 Full Trace Events 8 | . . . 1 . . . . . 2 . 2 . . . . 1 . 2 . . . . . Feedback Events . | . . . . . . . . . . . . . . . . . . . . . . . . Feedback Blocked . | . . . . . . . . . . . . . . . . . . . . . . . . Robot Schematics Acquired 4 | . . . . . . . . . . . . . . 4 . . . . . . . . . Robots Built . | . . . . . . . . . . . . . . . . . . . . . . . . Authchips . | . . . . . . . . . . . . . . . . . . . . . . . . Time . | . . . . . . . . . . . . . . . . . . . . . . . . Total Robot Build Rating . | . . . . . . . . . . . . . . . . . . . . . . . . Part Schematics Acquired 18 | . . . . . . . . . 1 . . . . 12 . 1 . 3 . . . . 1 Parts Built . | . . . . . . . . . . . . . . . . . . . . . . . . Authchips . | . . . . . . . . . . . . . . . . . . . . . . . . Time . | . . . . . . . . . . . . . . . . . . . . . . . . Total Part Build Rating . | . . . . . . . . . . . . . . . . . . . . . . . . Part Studies Acquired 15 | . . . 2 . 2 . . . 3 . 2 . . . . 2 . 2 . . . . 2 Parts Repaired 5 | . . . . . . 1 . . . . 2 . . . . 1 . 1 . . . . . Time 250 | . . . . . . 32 . . . . 112 . . . . 50 . 56 . . . . . Parts Recycled . | . . . . . . . . . . . . . . . . . . . . . . . . Recycled Matter . | . . . . . . . . . . . . . . . . . . . . . . . . Retrieved Matter . | . . . . . . . . . . . . . . . . . . . . . . . . Retrieved Components 20 | . 1 . 9 . . 10 . . . . . . . . . . . . . . . . . Parts Scanalyzed 6 | . . . . . . . . . 2 . 1 . . . . . . 2 . . . . 1 Part Schematics Acquired 5 | . . . . . . . . . 1 . . . . . . . . 3 . . . . 1 Parts Damaged . | . . . . . . . . . . . . . . . . . . . . . . . . Bothacking | -11 -10 -10 -9 -9 -8 -8 -8 -8 -6 -6 -6 -6 -6 -6 -5 -5 -5 -5 -5 -5 -5 -5 -4 ------------ Run | Yrd Mat Min Mat Min Mat Sto Rec Scr Fac Was Fac Low Low Dat Pro Fac Was Fac Ext Cet Arc Hub Fac Used RIF Installer . | . . . . . . . . . . . . . . . . . . . . . . . . Robots Hacked . | . . . . . . . . . . . . . . . . . . . . . . . . Non-combat . | . . . . . . . . . . . . . . . . . . . . . . . . Combat . | . . . . . . . . . . . . . . . . . . . . . . . . Robot Hacks Applied . | . . . . . . . . . . . . . . . . . . . . . . . . Relay Couplers Released 3 | . . . . . . . . . . . 3 . . . . . . . . . . . . Programmers 3 | . . . . . . . . . . . 3 . . . . . . . . . . . . Fabnet Peak Effective % . | . . . . . . . . . . . . . . . . . . . . . . . . Robots Rewired 11 | . . . . . . . . . . . . . . . . . . . 11 . . . . Allies Hacked . | . . . . . . . . . . . . . . . . . . . . . . . . Hacks Repelled . | . . . . . . . . . . . . . . . . . . . . . . . . Allies | -11 -10 -10 -9 -9 -8 -8 -8 -8 -6 -6 -6 -6 -6 -6 -5 -5 -5 -5 -5 -5 -5 -5 -4 -------- Run | Yrd Mat Min Mat Min Mat Sto Rec Scr Fac Was Fac Low Low Dat Pro Fac Was Fac Ext Cet Arc Hub Fac Total Allies 53 | . . . . 3 . 2 . . . 20 . . . . . . . . 23 5 . . . Largest Group 20 | . . . . 3 3 2 . . . 20 15 . . . . . . . 16 20 16 14 . Highest-Rated Group 1014 | . . . . 40 40 62 . . . 812 591 . . . . . . . 575 1014 711 652 . Highest-Rated Ally 159 | . . . . 16 16 31 . . . 50 46 . . . . . . . 159 153 96 96 . Total Orders 23 | . . . 2 . . . . . 19 . . . . . . . . . 2 . . . . STAY 6 | . . . . . . . . . 5 . . . . . . . . . 1 . . . . ROAM 1 | . . . . . . . . . 1 . . . . . . . . . . . . . . FOLLOW 5 | . . . . . . . . . 4 . . . . . . . . . 1 . . . . RETURN 11 | . . . 2 . . . . . 9 . . . . . . . . . . . . . . Ally Attacks 378 | . . . . 9 18 20 . . . . 42 . . . . . . . 139 30 12 108 . Total Damage 8922 | . . . . 93 229 354 . . . . 1001 . . . . . . . 3141 789 291 3024 . Kills 69 | . . . . 2 . 9 . . . . 9 . . . . . . . 23 6 4 16 . Allies Corrupted 3 | . . . . . . . . . 1 . . . . . . . . . . . . 2 . Allies Melted 4 | . . . . . . . . . . 3 . . . . . . . . 1 . . . . Intel | -11 -10 -10 -9 -9 -8 -8 -8 -8 -6 -6 -6 -6 -6 -6 -5 -5 -5 -5 -5 -5 -5 -5 -4 ------- Run | Yrd Mat Min Mat Min Mat Sto Rec Scr Fac Was Fac Low Low Dat Pro Fac Was Fac Ext Cet Arc Hub Fac Active Infowar (turns) 9648 | 47 164 . 14 464 . . 1 . 594 272 872 719 284 34 522 993 46 1666 1200 444 96 490 726 Optics 8735 | . . . . . . . . . 371 272 872 719 284 34 522 993 46 1666 1200 444 96 490 726 Sensors 5527 | . . . . . . . . . 180 272 743 656 272 31 497 789 46 1478 36 . . . 527 Terrain 4310 | . . . . . . . . . 227 . 708 663 272 33 495 609 . 1264 39 . . . . Structural 1 | . . . . . . . 1 . . . . . . . . . . . . . . . . Seismic 689 | 47 164 . 14 464 . . . . . . . . . . . . . . . . . . . T.N.C. 307 | . . . . . . . . . . . . . . . . 112 . 195 . . . . . Jamming 190 | . . . . . . . . . . . 106 . . . . . . 84 . . . . . ECM 1 | . . . . . . . . . . . . 1 . . . . . . . . . . . Robot Analysis Total 7 | . 2 . . . . . . 5 . . . . . . . . . . . . . . . Derelict Logs Recovered 10 | . . 1 . 2 . . . . . . . 2 2 . 3 . . . . . . . . Drone Launches 19 | . . . 2 . . . . . 17 . . . . . . . . . . . . . . Drone Recoveries 17 | . . . 2 . . . . . 15 . . . . . . . . . . . . . . Exploration | -11 -10 -10 -9 -9 -8 -8 -8 -8 -6 -6 -6 -6 -6 -6 -5 -5 -5 -5 -5 -5 -5 -5 -4 ------------- Run | Yrd Mat Min Mat Min Mat Sto Rec Scr Fac Was Fac Low Low Dat Pro Fac Was Fac Ext Cet Arc Hub Fac Turns Passed 25477 | 131 1605 1386 1652 1937 1854 2711 1216 2726 1883 272 872 719 284 34 522 993 46 1666 1200 444 96 490 738 Spaces Moved 17219 | 74 624 561 555 592 615 851 468 1140 1122 283 1316 845 673 82 601 1567 101 2336 1003 211 42 511 1046 Core 38 | 21 . . . . . . . . . . . . . . . . . . . . . . 17 Treads 5530 | 53 624 561 555 592 615 851 468 1140 71 . . . . . . . . . . . . . . Legs 746 | . . . . . . . . . 746 . . . . . . . . . . . . . . Wheels . | . . . . . . . . . . . . . . . . . . . . . . . . Hover 10905 | . . . . . . . . . 305 283 1316 845 673 82 601 1567 101 2336 1003 211 42 511 1029 Flight . | . . . . . . . . . . . . . . . . . . . . . . . . Fastest Speed 25 | 50 160 240 160 240 210 250 250 165 34 34 38 38 38 38 38 25 41 41 47 50 53 37 45 Average Speed 109 | 137 212 240 233 240 234 250 250 236 112 61 44 39 38 38 38 38 41 44 50 51 53 50 49 Slowest Speed 470 | 160 240 240 240 240 250 250 250 250 470 84 92 92 92 92 92 95 41 105 108 53 53 53 150 Overloaded Moves 17 | . . . . . . . . . . . . . . . . 4 . . . . . 13 . Propulsion Burnouts . | . . . . . . . . . . . . . . . . . . . . . . . . Robots Hopped . | . . . . . . . . . . . . . . . . . . . . . . . . Potential Cave-ins 6 | . . . . . . . . . 4 . 2 . . . . . . . . . . . . Cave-ins Triggered . | . . . . . . . . . . . . . . . . . . . . . . . . Exploration Rate (%) 68 | 4 91 99 51 99 55 96 98 83 39 87 35 84 88 75 70 45 81 56 97 60 82 51 19 Regions Visited 23 Branch Regions 13 Pre-discovered Areas 20 | . 5 . 1 . 1 4 7 . 1 . . . . 1 . . . . . . . . . Known Exits Taken 14 | . 1 1 . 1 1 1 1 1 . . 1 1 1 1 1 . . 1 . . . 1 . Unknown Exits Taken 5 | 1 . . 1 . . . . . . . . . . . . . . . 1 1 1 . . Scrap Searched 21 | . . 1 . 1 . . . 4 . . . 11 3 . 1 . . . . . . . . Spaces Dug 207 | . 1 . . . 1 3 . . 14 . 29 22 1 . 4 34 . 60 1 . . 11 26 Terrain Destroyed 981 | . 1 . 8 . 15 3 . . 77 2 131 27 25 . 15 41 . 134 66 10 3 363 60 Melee 97 | . 1 . . . 1 3 . . . . . . . . . 28 . 49 1 . . . 14 Projectile 265 | . . . . . . . . . 77 2 37 27 2 . 15 13 . 18 10 10 3 43 8 AOE 618 | . . . 8 . 14 . . . . . 94 . 23 . . . . 67 54 . . 320 38 Terrain Rammed 3 | . . . . . . . . . . . . . . . . . . . . . . . 3 Walls Destroyed . | . . . . . . . . . . . . . . . . . . . . . . . . Machines Disabled . | . . . . . . . . . . . . . . . . . . . . . . . . Actions | -11 -10 -10 -9 -9 -8 -8 -8 -8 -6 -6 -6 -6 -6 -6 -5 -5 -5 -5 -5 -5 -5 -5 -4 --------- Run | Yrd Mat Min Mat Min Mat Sto Rec Scr Fac Was Fac Low Low Dat Pro Fac Was Fac Ext Cet Arc Hub Fac Total 21776 | 87 767 583 729 1081 820 1181 490 1175 1536 364 1529 1187 688 83 862 1804 104 2708 1559 505 104 649 1181 Wait 2441 | . 44 . 25 463 36 124 2 8 152 44 96 290 2 . 225 85 . 127 323 223 58 70 44 Move 17198 | 73 623 560 554 591 614 850 467 1139 1122 282 1315 844 672 81 600 1567 100 2335 1002 210 41 510 1046 Hop . | . . . . . . . . . . . . . . . . . . . . . . . . Pick Up 147 | . 11 4 19 5 13 11 . 11 13 5 10 . . . . 14 . 14 5 6 . 3 3 Fast Attach 68 | 6 3 . 1 . 1 3 . . 9 . 6 2 1 . . 4 . 14 7 6 . 1 4 Attach 53 | . 3 1 5 2 2 4 2 2 11 . 8 . 1 . . 2 . 2 3 . . 1 4 Detach 33 | . 3 . . . . 1 2 . 8 . 9 1 1 . . 1 . 2 3 . . . 2 Swap 307 | 1 6 2 14 2 20 18 1 4 33 7 20 14 4 2 10 33 3 64 15 19 . 1 14 Drop 172 | . 1 1 12 3 22 14 . 9 25 8 9 1 . . . 15 1 22 4 19 . 3 3 Fire 840 | 7 66 5 93 14 98 128 11 . 104 18 56 35 4 . 25 20 . 26 49 19 5 42 15 Melee 244 | . 4 . . . 3 13 . . . . . . 3 . . 63 . 102 17 3 . . 36 Ram 10 | . . . . . . . . . . . . . . . . . . . . . . . 10 Kick 19 | . . . . . . . . . 19 . . . . . . . . . . . . . . Crush 45 | . 3 7 6 1 11 9 5 2 1 . . . . . . . . . . . . . . Escape Stasis 69 | . . . . . . 6 . . 39 . . . . . . . . . 6 . . 18 . Rewire 128 | . . 3 . . . . . . . . . . . . . . . . 125 . . . . Trap 2 | . . . . . . . . . . . . . . . 2 . . . . . . . . Miscellaneous . | . . . . . . . . . . . . . . . . . . . . . . . . Route ------- -11/Scrapyard -10/Materials (discovered 5 exits: *Mat x3 / *Min / *Sub) -10/Mines (discovered 3 exits: *Mat x2 / *Sub) -9/Materials (discovered 2 exits: *Mat / [*Min]) -9/Mines (discovered 2 exits: *Mat x2) -8/Materials (discovered 2 exits: [*Fac] / *Sto) -8/Storage (discovered 2 exits: [*Fac] / *Rec) -8/Recycling (discovered 2 exits: *Fac / *Scr) -8/Scraptown (discovered 2 exits: *Fac x2) -6/Factory (discovered 6 exits: *Fac x4 / *Low x2) -6/Waste -6/Factory (discovered 4 exits: *Fac x3 / *Low) -6/Lower Caves -6/Lower Caves (discovered 2 exits: *Fac / *Dat) -6/Data Miner -5/Proximity Caves -5/Factory (discovered 6 exits: *Fac x2 / *Upp x2 / Ext x2) -5/Waste -5/Factory (discovered 6 exits: *Fac x2 / *Upp x2 / *Ext x2) -5/Extension (discovered 2 exits: *Fac / *Cet) -5/Cetus (discovered 2 exits: *Fac / [*Arc]) -5/Archives (discovered 3 exits: *Fac / *Hub x2) -5/Hub_04(d) (discovered 3 exits: *Fac x3) -4/Factory (discovered 3 exits: Upp x2 / Arm) History --------- Turn | Location | Event 13 | -11/Scrapyard | Discovered new exit (range 15) 132 | -11/Scrapyard | Entered Materials 234 | -10/Materials | Discovered new exit (range 14) 315 | -10/Materials | Build established: Mutant 354 | -10/Materials | Discovered new exit (range 6) 510 | -10/Materials | Discovered new exit (range 16) 623 | -10/Materials | Central database locked down 623 | -10/Materials | Identified exit to Materials 816 | -10/Materials | Identified exit to Mines 816 | -10/Materials | Identified exit to Subcaves 895 | -10/Materials | Loaded intel: 8 terminal locations 1027 | -10/Materials | Learned location of 1 exit from Recycling 1078 | -10/Materials | Learned Storage trap positions 1304 | -10/Materials | Learned Storage trap positions 1341 | -10/Materials | Core integrity fell below 50% 1377 | -10/Materials | Loaded intel: 21 trap records 1737 | -10/Materials | Entered Mines 2329 | -10/Mines | Discovered exit to Subcaves (range 7) 2361 | -10/Mines | Learned Materials emergency access door positions 2416 | -10/Mines | Discovered exit to Materials (range 11) 2670 | -10/Mines | Found the Drone Emporium 2684 | -10/Mines | Found Prototype Device 2684 | -10/Mines | Identified Sensor Drone Bay 2792 | -10/Mines | Discovered exit to Materials (range 11) 2928 | -10/Mines | Deemed a non-threat by the Exiles lab entrance 3123 | -10/Mines | Entered Materials 3123 | -9/Materials | Evolved 2 slots: Propulsion x1, Utility x1 3950 | -9/Materials | Discovered new exit (range 8) 3974 | -9/Materials | Identified exit to Materials 4659 | -9/Materials | Discovered new exit (range 16) 4721 | -9/Materials | Build established: Scavenger-Mutant 4723 | -9/Materials | First assault squad dispatched 4775 | -9/Materials | Entered Mines 4776 | -9/Mines | Assembled infested the area 5535 | -9/Mines | Discovered exit to Materials (range 5) 5809 | -9/Mines | Learned Materials stockpile data 6169 | -9/Mines | Assisted by bots powering up and referring to "LRC-V3" 6712 | -9/Mines | Entered Materials 6712 | -8/Materials | Accompanied by 3 allies 6712 | -8/Materials | Evolved 2 slots: Propulsion x1, Utility x1 6713 | -8/Materials | Identified exit to Storage 7503 | -8/Materials | Discovered new exit (range 15) 7651 | -8/Materials | Build established: Mutant 7856 | -8/Materials | Learned location of 2 exits from Lower Caves 7878 | -8/Materials | Learned location of 2 exits from Factory 7890 | -8/Materials | Learned 2 Lower Caves zone layouts 7891 | -8/Materials | Learned Storage stockpile data 7892 | -8/Materials | Learned location of Extension (-5) 7893 | -8/Materials | Learned Storage machine intel 7903 | -8/Materials | Learned Storage non-interactive machine intel 8000 | -8/Materials | Central database locked down 8566 | -8/Materials | Entered Storage 8567 | -8/Storage | Loaded intel: 17 trap records 8569 | -8/Storage | Loaded intel: 39 machine locations 8570 | -8/Storage | Loaded intel: 20 non-interactive machine locations 8694 | -8/Storage | Garrison activated, responded to threat 9509 | -8/Storage | Met a pair of Derelict thieves 9713 | -8/Storage | Discovered new exit (range 5) 10524 | -8/Storage | Repaired Shield Generator 10701 | -8/Storage | Learned Factory recycling unit intel 10843 | -8/Storage | Learned location of 3 exits from Factory 10899 | -8/Storage | Learned location of 1 exit from Recycling 11009 | -8/Storage | Learned Storage stockpile data 11048 | -8/Storage | Learned location of Zion (-7) 11097 | -8/Storage | Identified exit to Recycling 11206 | -8/Storage | Used back door to open Recycling access 11277 | -8/Storage | Entered Recycling 11278 | -8/Recycling | Identified exit to Factory 11279 | -8/Recycling | Identified exit to Scraptown 11838 | -8/Recycling | Learned location of 2 exits from Lower Caves 11888 | -8/Recycling | Learned Factory recycling unit intel 11962 | -8/Recycling | Learned 12 Factory zone layouts 12429 | -8/Recycling | Scanned before Scraplab entrance 12468 | -8/Recycling | Entered Scraplab 12493 | -8/Recycling | Entered Scraptown 12493 | -8/Scraptown | System corruption cleaned by C-Scrubber 12885 | -8/Scraptown | Visited Assassins FH 12945 | -8/Scraptown | Visited Fellowship of the Rings 12967 | -8/Scraptown | Visited CPS Storage 13020 | -8/Scraptown | Visited Awakened 13057 | -8/Scraptown | Visited Spacefarers 13100 | -8/Scraptown | Visited Symbiants 13130 | -8/Scraptown | Visited The Evicted 13885 | -8/Scraptown | Visited UFD Registry 13913 | -8/Scraptown | Registered with UFD as "Dataparser" 13963 | -8/Scraptown | Visited Science Guys 14043 | -8/Scraptown | Visited Infowarlord's Domain 14078 | -8/Scraptown | Visited Junk Repository 14248 | -8/Scraptown | Visited Scrap Suit Storage 14280 | -8/Scraptown | Visited Analyses Database 14333 | -8/Scraptown | Visited Derelict Rescue Squad 14398 | -8/Scraptown | Visited Curators Association 14490 | -8/Scraptown | Visited Scrapoid Research Area 14533 | -8/Scraptown | Visited Observation Area 14928 | -8/Scraptown | Found Exp. Terrain Scanner 15010 | -8/Scraptown | Met Optimus 15010 | -8/Scraptown | Accepted into 0bPrime 15191 | -8/Scraptown | Civil war broke out across Scraptown 15195 | -8/Scraptown | Found PL-3XN's Ring of Power 15219 | -8/Scraptown | Entered Factory 15219 | -6/Factory | Evolved 4 slots: Propulsion x1, Utility x2, Weapon x1 15220 | -6/Factory | Identified exit to Factory 15221 | -6/Factory | Identified exit to Lower Caves 15223 | -6/Factory | Loaded intel: 8 recycling unit locations 15242 | -6/Factory | Lost 3 allies 15349 | -6/Factory | Loaded intel: 8 recycling unit locations 15588 | -6/Factory | Build established: Tank 15863 | -6/Factory | Spotted B-75 Beast 15971 | -6/Factory | Learned location of Protoforge (-2) 17102 | -6/Factory | Sucked down chute 17102 | -6/Factory | Entered Waste 17103 | -6/Waste | Joined by Warlord forces that had cleared the area 17187 | -6/Waste | Found Broken Exp. Terrain Scan Processor 17198 | -6/Waste | Build established: Mutant 17221 | -6/Waste | Discovered new exit (range 22) 17374 | -6/Waste | Entered Factory 17374 | -6/Factory | Accompanied by 15 allies 17375 | -6/Factory | Loaded intel: 8 recycling unit locations 17385 | -6/Factory | Murdered 3 allies 17637 | -6/Factory | Repaired Broken Exp. Terrain Scan Processor 17646 | -6/Factory | Repaired Adv. Sensor Array? 17683 | -6/Factory | Build established: Scavenger-Mutant 17708 | -6/Factory | Spotted B-75 Beast 17877 | -6/Factory | Lost 5 allies 17878 | -6/Factory | Murdered 3 allies 17979 | -6/Factory | Discovered exit to Factory (range 16) 18002 | -6/Factory | Discovered exit to Factory (range 6) 18007 | -6/Factory | Discovered exit to Lower Caves (range 13) 18065 | -6/Factory | Discovered exit to Factory (range 19) 18246 | -6/Factory | Entered Lower Caves 18247 | -6/Lower Caves | Identified exit to Lower Caves 18351 | -6/Lower Caves | Build established: Scout 18434 | -6/Lower Caves | Encountered a Warlord checkpoint 18763 | -6/Lower Caves | Learned location of 1 exit from Factory 18777 | -6/Lower Caves | Learned Factory stockpile data 18965 | -6/Lower Caves | Entered another Lower Caves area 18966 | -6/Lower Caves | Identified exit to Data Miner 19025 | -6/Lower Caves | Learned Factory garrison access intel 19062 | -6/Lower Caves | Encountered a Warlord checkpoint 19128 | -6/Lower Caves | Entered an active Warlord outpost 19133 | -6/Lower Caves | Learned Extension garrison access intel 19152 | -6/Lower Caves | Learned Factory security intel 19249 | -6/Lower Caves | Entered Data Miner 19249 | -6/Data Miner | Discovered new exit (range 6) 19254 | -6/Data Miner | Met Data Miner 19265 | -6/Data Miner | Learned location of Section 7 (-2) 19265 | -6/Data Miner | Acquired the access code to Warlord's prototype stash 19270 | -6/Data Miner | Received God Mode back door access code from Data Miner 19280 | -6/Data Miner | Identified exit to Proximity Caves 19283 | -6/Data Miner | Entered Proximity Caves 19313 | -5/Proximity Caves | Acquired the password to a Derelict Tinkerer's latest research 19657 | -5/Proximity Caves | Caught by Unaware searching for contraband prototypes 19670 | -5/Proximity Caves | Spotted B-75 Beast 19713 | -5/Proximity Caves | Learned Factory trap positions 19778 | -5/Proximity Caves | Discovered exit to Factory (range 28) 19787 | -5/Proximity Caves | Learned location of 1 exit from Factory 19805 | -5/Proximity Caves | Entered Factory 19805 | -5/Factory | Evolved 2 slots: Power x1, Propulsion x1 19806 | -5/Factory | Identified exit to Extension 19807 | -5/Factory | Identified exit to Factory 19808 | -5/Factory | Loaded intel: 76 trap records 19811 | -5/Factory | Loaded intel: 4 garrison access locations 20067 | -5/Factory | Discovered new exit (range 9) 20069 | -5/Factory | Identified exit to Upper Caves 20155 | -5/Factory | Central database locked down 20192 | -5/Factory | Loaded intel: 8 recycling unit locations 20277 | -5/Factory | Discovered exit to Extension (range 25) 20650 | -5/Factory | Repaired Adv. Sensor Array? 20798 | -5/Factory | Sucked down chute 20798 | -5/Factory | Entered Waste 20809 | -5/Waste | Spotted C-40 Crusher 20812 | -5/Waste | Spotted C-40 Crusher 20821 | -5/Waste | Spotted C-40 Crusher 20821 | -5/Waste | Spotted C-40 Crusher 20829 | -5/Waste | Spotted C-40 Crusher 20830 | -5/Waste | Discovered new exit (range 21) 20835 | -5/Waste | Spotted C-40 Crusher 20844 | -5/Waste | Identified exit to Factory 20844 | -5/Waste | Entered Factory 20943 | -5/Factory | Loaded intel: 8 recycling unit locations 20978 | -5/Factory | Discovered exit to Factory (range 27) 21088 | -5/Factory | Discovered exit to Extension (range 6) 21192 | -5/Factory | Found Prototype Launcher 21192 | -5/Factory | Identified Scatter Rocket Array 21224 | -5/Factory | Spotted B-75 Beast 21335 | -5/Factory | Allied Derelicts emerged from ambush trap array 21368 | -5/Factory | Discovered exit to Upper Caves (range 4) 21459 | -5/Factory | Found Prototype Launcher 21459 | -5/Factory | Identified Tesla Bomb Launcher 21575 | -5/Factory | System corruption reached 10% 21771 | -5/Factory | Repaired Cmb. Gravmag System+? 22069 | -5/Factory | Discovered exit to Factory (range 19) 22302 | -5/Factory | Incoming investigation squad redirected 22510 | -5/Factory | Entered Extension 22635 | -5/Extension | Rescued A7 22659 | -5/Extension | Rescued a captive Derelict 22660 | -5/Extension | Rescued a captive Derelict 22679 | -5/Extension | Rescued a captive Derelict 22681 | -5/Extension | Rescued a captive Derelict 22690 | -5/Extension | Rescued a captive Derelict 22721 | -5/Extension | Rescued a captive Derelict 22725 | -5/Extension | Rescued a captive Derelict 22808 | -5/Extension | Rescued a captive Derelict 23050 | -5/Extension | Spotted B-75 Beast 23064 | -5/Extension | Allies destroyed B-75 Beast 23068 | -5/Extension | Spotted B-75 Beast 23080 | -5/Extension | Allies destroyed B-75 Beast 23124 | -5/Extension | Lost 4 allies 23144 | -5/Extension | Rescued a captive Derelict 23275 | -5/Extension | Discovered new exit (range 22) 23276 | -5/Extension | Discovered exit to Factory (range 21) 23430 | -5/Extension | Build established: Commander-Gunner 23447 | -5/Extension | Destroyed 7 combat bots 23456 | -5/Extension | Loaded intel: 1 recycling unit location 23487 | -5/Extension | Rescued a captive Derelict 23488 | -5/Extension | Rescued a captive Derelict 23710 | -5/Extension | First assault squad dispatched 23710 | -5/Extension | Entered Cetus 23710 | -5/Cetus | Accompanied by 15 allies (A7) 23715 | -5/Cetus | Acquired a Cetus Manufacturing Module code from A7 23716 | -5/Cetus | Spotted Cetus Guard 23716 | -5/Cetus | Spotted Cetus Guard 23716 | -5/Cetus | Spotted Cetus Guard 23716 | -5/Cetus | Spotted Cetus Guard 23737 | -5/Cetus | Allies destroyed Cetus Guard 23743 | -5/Cetus | Destroyed Cetus Guard 23744 | -5/Cetus | Allies destroyed Cetus Guard 23747 | -5/Cetus | Destroyed Cetus Guard 23783 | -5/Cetus | Started Cetus Manufacturing Module 23787 | -5/Cetus | Discovered new exit (range 22) 23808 | -5/Cetus | Manufactured an Enhanced Grunt 23833 | -5/Cetus | Manufactured an Enhanced Grunt 23858 | -5/Cetus | Manufactured an Enhanced Grunt 23883 | -5/Cetus | Manufactured an Enhanced Grunt 23908 | -5/Cetus | Manufactured an Enhanced Grunt 23937 | -5/Cetus | Spotted Cetus Guard 23937 | -5/Cetus | Spotted Cetus Guard 23937 | -5/Cetus | Spotted Cetus Guard 23937 | -5/Cetus | Spotted Cetus Guard 23943 | -5/Cetus | Discovered exit to Factory (range 22) 23957 | -5/Cetus | Destroyed Cetus Guard 23969 | -5/Cetus | Destroyed Cetus Guard 23976 | -5/Cetus | Allies destroyed Cetus Guard 23979 | -5/Cetus | Destroyed Cetus Guard 23988 | -5/Cetus | Met Revision 17 24010 | -5/Cetus | Attached CPS modules to A7. 24043 | -5/Cetus | Murdered A7 24046 | -5/Cetus | Extracted ID and sensor layout for unrecognized location from A7's data core 24054 | -5/Cetus | Found Prototype Protection 24054 | -5/Cetus | Identified Med. Regenerative Plating 24061 | -5/Cetus | Found Prototype Device 24061 | -5/Cetus | Identified Exp. Thermal Shield 24154 | -5/Cetus | Entered Archives 24154 | -5/Archives | Accompanied by 16 allies 24181 | -5/Archives | Discovered new exit (range 22) 24183 | -5/Archives | Discovered exit to Factory (range 21) 24184 | -5/Archives | Discovered new exit (range 17) 24250 | -5/Archives | Entered Hub_04(d) 24250 | -5/Hub_04(d) | Accompanied by 14 allies 24251 | -5/Hub_04(d) | Spotted B-75 Beast 24259 | -5/Hub_04(d) | Allies destroyed B-75 Beast 24494 | -5/Hub_04(d) | Lost 3 allies 24523 | -5/Hub_04(d) | Network Hub disabled 24528 | -5/Hub_04(d) | Spotted Lightning 24562 | -5/Hub_04(d) | Lost 7 allies 24565 | -5/Hub_04(d) | Network Hub disabled 24589 | -5/Hub_04(d) | Discovered exit to Factory (range 13) 24630 | -5/Hub_04(d) | Spotted Lightning 24645 | -5/Hub_04(d) | Garrison activated, responded to threat 24669 | -5/Hub_04(d) | Discovered exit to Factory (range 5) 24713 | -5/Hub_04(d) | Network Hub disabled 24734 | -5/Hub_04(d) | Spotted Lightning 24738 | -5/Hub_04(d) | Spotted Lightning 24739 | -5/Hub_04(d) | Discovered exit to Factory (range 15) 24740 | -5/Hub_04(d) | Entered Factory 24740 | -4/Factory | Evolved 2 slots: Propulsion x2 24741 | -4/Factory | Identified exit to Armory 24751 | -4/Factory | Lost 3 allies 25036 | -4/Factory | Loaded intel: 8 recycling unit locations 25062 | -4/Factory | Incoming investigation squad redirected 25063 | -4/Factory | Central database locked down 25081 | -4/Factory | Identified exit to Upper Caves 25285 | -4/Factory | Build established: Scavenger-Scout 25355 | -4/Factory | Lost 4 parts (2p1n1w) 25458 | -4/Factory | Core integrity fell below 50% 25462 | -4/Factory | System corruption reached 10% 25468 | -4/Factory | Core integrity fell below 20% 25478 | -4/Factory | Core destroyed Last Messages --------------- 25460_ Cmb. Airjet+ destroyed. 25464_ Dropped Lrg. Storage Unit. 25466_ Slammed into P-70 Sage. 25466_ Enh. Optical Array broken. 25466_ Destabilizing: Short circuit. 25469_ Slammed into P-70 Sage. 25469_ P-70 Sage resets P-70 Sage, system corruption cleaned. 25471_ Slammed into T-07 Excavator. 25471_ Destabilizing: System corrupted (+2). 25476_ Slammed into Wall. 25476_ Destabilizing: System corrupted (+1). 25477_ Slammed into Wall. 25477_ Destabilizing: System corrupted (+1). 25477_ Destabilizing: Core damaged (-23). 25478_ Slammed into Wall. 25478_ Adv. Signal Interpreter broken. 25478_ Destabilizing: Short circuit. 25478_ Destabilizing: Core damaged (-46). Map ----- +----------------------------------------------------+ | #????????????????????????????????????????????????? | | #???????????????????????###########??????????????? | | #???????????????????????# !!= #??????????????? | | #???????????????????##??# !!= #??????????????? | | #??????###############??# !== #??????????????? | | #??????# """"""" #???# #??????????????? | | #??????# """Y""" #???# #??????????????? | | ######## #???# #??????????????? | | + + ! #???# #??????????????? | | ######## #???# #??????????????? | | ######?# "" "" #########+#####??????????????? | | #?# "" "" # #???????????????? | | #?# """ """ # #????????????=??? | | #?# """ """ # """ """ #???????????????# | | #?# """ """ # """ """ ############## | | #?# # """ """ # + | | #?# # # " # | | ##########+##### """ """ # ! " #?? | | g """ """ # " #??? | | """ """ + " #??? | | # " #?? | | # " #?? | | t # " #? | | ##/#/######### ###### # " #? | | #???# #????# # " # | | #???# @#????# # """Y""" # | | #???# #????# # """"""" " | | #???# #????# ############## | | #???# #????# #????????????? | | #???# t #????# ?????????????? | | #???############ #????# ?????????????? | | #??????????????# #????# ??????????????? | | #??????????????#%#????? ??????????????? | | #??????????????# #????? ???????????????? | | #??????????????# #??#########???????????? | | #?????????????##p#### """ [#???????????? | | ###/######???????##+##?# # "Y" #???????????? | | ??# ######### ### # " "] #???????????? | | ??# ! %/% ]!! #???????????? | | ??# ######### ! ### %# !!!! #?????]?????? | | ??# #???????## ##?# # !]!=#???????????? | | ??# #????????# #??###############???????????? | | ??# #????????# #????????????????????????????? | | ### #????????# #????????????????????????????? | | # #????????# #????????????????????????????? | | #???????## ##???????????????????????????? | | # ######### ######??????????????????????? | | ##+#### +??????????????????????? | | ?# ## ## ### ##??????????????????????? | | ?# ##!! ###+##???????????????????????????? | +----------------------------------------------------+ Best States ------------- Heat Dissipation 71 Energy Generation 38 Energy Capacity 750 Matter Stores 300 Matter Capacity 300 Sight Range 22 Robot Scan Range 16 Terrain Scan Range 30 Terrain Scan Density 210 Jamming Range 14 Armor Coverage 600 Weapon Shielding 33 Melee Speed Boost 30 Evasion (%) 58 Targeting Accuracy 20 Melee Accuracy 8 Recoil Reduction 5 Offensive Hacking 14 Authchip Count 4 Item Schematics ----------------- CPS Tube | -6/Factory | Scanalyzed Combat Drone Bay | -6/Data Miner | Free Lgt. Regenerative Plating | -6/Data Miner | Free Cld. Nuclear Pulse Thruster | -6/Data Miner | Free Imp. Matter Compressor | -6/Data Miner | Free Ionic Axe | -6/Data Miner | Free Centrium Wheel | -6/Data Miner | Free Adv. Thermal Generator | -6/Data Miner | Free Railgun | -6/Data Miner | Free Imp. Dynamic Insulation System | -6/Data Miner | Free Field Propulsion Array | -6/Data Miner | Free Quantum Capacitor | -6/Data Miner | Free Particle Reactor | -6/Data Miner | Free Antigrav Array | -5/Factory | Hacked Tiamat Missile Launcher | -5/Factory | Scanalyzed Weapon Mount | -5/Factory | Scanalyzed Nanoactuators | -5/Factory | Scanalyzed Centrium Medium Armor Plating | -4/Factory | Scanalyzed Robot Schematics ------------------ B-60 Warrior | -6/Data Miner | Free A-15 Conveyor | -6/Data Miner | Free P-60 Hacker | -6/Data Miner | Free X-62 Marksman | -6/Data Miner | Free Fabricated ------------ Nothing Repaired ---------- Shield Generator | 13% | -8/Storage Exp. Terrain Scan Processor | 51% | -6/Factory | Broken Adv. Sensor Array | 62% | -6/Factory Adv. Sensor Array | 12% | -5/Factory Cmb. Gravmag System | 27% | -5/Factory Studied --------- Hvy. Assault Rifle | -9/Materials | Hacked Lgt. Ion Engine | -9/Materials | Hacked Mni. Grenade Launcher | -8/Materials | Hacked Lgt. Treads | -8/Materials | Hacked Missile Launcher | -6/Factory | Hacked Imp. Titanium Leg | -6/Factory | Hacked Mic. Nuclear Core | -6/Factory | Hacked Cmb. Airjet | -6/Factory | Hacked Gravmag System | -6/Factory | Hacked Cmb. Gravmag System | -5/Factory | Hacked Linear Gravjet | -5/Factory | Hacked Mic. Fission Core | -5/Factory | Hacked Gravmag Array | -5/Factory | Hacked Antigrav Array | -4/Factory | Hacked Mic. Antimatter Reactor | -4/Factory | Hacked Alien Tech Used ----------------- None Achievements -------------- None Challenges ------------ None Game ------ Seed CompositeConcussiveTreads Manual? 0 Play Time 04:05:08 Cumulative 514.9 hours Start 2025.11.05 @ 03:19:46 End 2025.11.05 @ 23:10:34 Sessions 6 Manual Loads 0 Difficulty Rogue Special Mode None Game No. 279 Rogue 279 Adventurer 0 Explorer 0 Win Type - Total 22 Types 13/1/5/1/0/0/0/1/1/0 Lore% 94 Gallery% 88 Achievement% 79 Wizard Run 0 Options --------- Layout 2 ASCII 0 Keyboard 1 Movement Vi Keybinds 0 Fullscreen 1 Font 28/Terminus Map View 50x52 Zoom Use 0% Tactical HUD 1 Map Filters NONE Filters NONE Steam 1 RUN: a922652f-7e63-43c9-a5c4-cbd4e0a41ecc